[Event "Late-Titled-Tuesday-Blitz-April-30-2024"]
[Site "Chess.com"]
[Date "2024.04.30"]
[Round "1"]
[White "slidingknight2775"]
[Black "KorolDimitriy75"]
[Result "1/2-1/2"]
[WhiteElo "2628"]
[BlackElo "2344"]
[TimeControl "180+1"]
[EndTime "14:09:45 PDT"]
[Termination "Game drawn - insufficient material"]

1. d4 {[%clk 0:03:00.2]} 1... Nf6 {[%clk 0:02:59.7]} 2. c4 {[%clk 0:03:00.2]}
2... c5 {[%clk 0:02:59.8]} 3. e3 {[%clk 0:02:57.9]} 3... g6 {[%clk 0:02:59.3]}
4. Nc3 {[%clk 0:02:56.9]} 4... cxd4 {[%clk 0:02:59.4]} 5. exd4 {[%clk
0:02:57.8]} 5... d5 {[%clk 0:02:59.7]} 6. Qb3 {[%clk 0:02:53.5]} 6... Bg7 {[%clk
0:02:48]} 7. cxd5 {[%clk 0:02:53.5]} 7... O-O {[%clk 0:02:40.6]} 8. Be2 {[%clk
0:02:53.5]} 8... Nbd7 {[%clk 0:02:41]} 9. Bf3 {[%clk 0:02:52.7]} 9... Nb6 {[%clk
0:02:37]} 10. Nge2 {[%clk 0:02:52]} 10... Bg4 {[%clk 0:02:26.8]} 11. Bxg4 {[%clk
0:02:51.1]} 11... Nxg4 {[%clk 0:02:27.1]} 12. O-O {[%clk 0:02:47.8]} 12... Qd7
{[%clk 0:02:10.9]} 13. a4 {[%clk 0:02:06.4]} 13... Rfd8 {[%clk 0:01:54.3]} 14.
h3 {[%clk 0:01:49.4]} 14... Nf6 {[%clk 0:01:53.3]} 15. d6 {[%clk 0:01:48.9]}
15... Qxd6 {[%clk 0:01:40.7]} 16. Bf4 {[%clk 0:01:38]} 16... Qd7 {[%clk
0:01:33.2]} 17. Be5 {[%clk 0:01:35.9]} 17... Rac8 {[%clk 0:01:21.4]} 18. Nb5
{[%clk 0:01:23.7]} 18... Qd5 {[%clk 0:00:30]} 19. Qxd5 {[%clk 0:01:20.3]} 19...
Nfxd5 {[%clk 0:00:27.1]} 20. Nxa7 {[%clk 0:01:01.9]} 20... Rc2 {[%clk
0:00:26.6]} 21. Nc3 {[%clk 0:00:53.8]} 21... Rxb2 {[%clk 0:00:22]} 22. Nxd5
{[%clk 0:00:51.7]} 22... Nxd5 {[%clk 0:00:22.9]} 23. Rfb1 {[%clk 0:00:46.7]}
23... Rxb1+ {[%clk 0:00:21.1]} 24. Rxb1 {[%clk 0:00:47.6]} 24... Rd7 {[%clk
0:00:15.2]} 25. Nc8 {[%clk 0:00:36]} 25... f6 {[%clk 0:00:13.2]} 26. Bg3 {[%clk
0:00:35.7]} 26... Kf7 {[%clk 0:00:13.4]} 27. Rb3 {[%clk 0:00:32.3]} 27... f5
{[%clk 0:00:11]} 28. Be5 {[%clk 0:00:26.5]} 28... Bxe5 {[%clk 0:00:10.6]} 29.
dxe5 {[%clk 0:00:27.4]} 29... Ke6 {[%clk 0:00:11.3]} 30. Nb6 {[%clk 0:00:16.5]}
30... Nxb6 {[%clk 0:00:10.9]} 31. Rxb6+ {[%clk 0:00:17.4]} 31... Kxe5 {[%clk
0:00:11.6]} 32. a5 {[%clk 0:00:18.3]} 32... e6 {[%clk 0:00:10.9]} 33. a6 {[%clk
0:00:18.4]} 33... bxa6 {[%clk 0:00:10.6]} 34. Rxa6 {[%clk 0:00:19.3]} 34... Kf6
{[%clk 0:00:10.8]} 35. g3 {[%clk 0:00:18.2]} 35... g5 {[%clk 0:00:11]} 36. Kg2
{[%clk 0:00:18.6]} 36... h5 {[%clk 0:00:11.2]} 37. Rb6 {[%clk 0:00:18.5]} 37...
Re7 {[%clk 0:00:10.2]} 38. Ra6 {[%clk 0:00:18.7]} 38... Ke5 {[%clk 0:00:09.2]}
39. Kf3 {[%clk 0:00:19]} 39... Kf6 {[%clk 0:00:09]} 40. Rb6 {[%clk 0:00:19.2]}
40... Rc7 {[%clk 0:00:09.2]} 41. Ra6 {[%clk 0:00:19.3]} 41... Rc3+ {[%clk
0:00:08.9]} 42. Kg2 {[%clk 0:00:19.5]} 42... Rc4 {[%clk 0:00:09.3]} 43. Kf3
{[%clk 0:00:19.7]} 43... h4 {[%clk 0:00:09.2]} 44. gxh4 {[%clk 0:00:18.6]} 44...
Rxh4 {[%clk 0:00:09]} 45. Kg3 {[%clk 0:00:19]} 45... Rc4 {[%clk 0:00:08.8]} 46.
Rb6 {[%clk 0:00:19]} 46... Rc3+ {[%clk 0:00:09]} 47. Kg2 {[%clk 0:00:18.7]}
47... Rd3 {[%clk 0:00:09.1]} 48. Rc6 {[%clk 0:00:18.7]} 48... Rd4 {[%clk
0:00:08.8]} 49. Ra6 {[%clk 0:00:18.7]} 49... Ke5 {[%clk 0:00:08.8]} 50. Rb6
{[%clk 0:00:17.2]} 50... Re4 {[%clk 0:00:08.3]} 51. Kg3 {[%clk 0:00:15.6]} 51...
Rd4 {[%clk 0:00:07.7]} 52. Ra6 {[%clk 0:00:15.3]} 52... Rd3+ {[%clk 0:00:07.6]}
53. Kg2 {[%clk 0:00:15.3]} 53... Rd6 {[%clk 0:00:07.8]} 54. Ra4 {[%clk
0:00:15.6]} 54... Rd5 {[%clk 0:00:07]} 55. Kg3 {[%clk 0:00:15.2]} 55... Rd3+
{[%clk 0:00:06.7]} 56. Kg2 {[%clk 0:00:15.7]} 56... Rd4 {[%clk 0:00:05.9]} 57.
Ra6 {[%clk 0:00:15.4]} 57... Kd5 {[%clk 0:00:04.5]} 58. Kg3 {[%clk 0:00:12.4]}
58... g4 {[%clk 0:00:01.3]} 59. hxg4 {[%clk 0:00:11.8]} 59... Rxg4+ {[%clk
0:00:01.7]} 60. Kf3 {[%clk 0:00:12.5]} 60... Rd4 {[%clk 0:00:01.3]} 61. Ra5+
{[%clk 0:00:13.1]} 61... Kd6 {[%clk 0:00:01.5]} 62. Ra8 {[%clk 0:00:14]} 62...
Ke7 {[%clk 0:00:01.6]} 63. Ra7+ {[%clk 0:00:14]} 63... Kf6 {[%clk 0:00:02.2]}
64. Ra8 {[%clk 0:00:14.9]} 64... Rd5 {[%clk 0:00:02.8]} 65. Kg2 {[%clk
0:00:15.3]} 65... Ke7 {[%clk 0:00:03.2]} 66. Rh8 {[%clk 0:00:15.6]} 66... Kf7
{[%clk 0:00:03.4]} 67. Rh7+ {[%clk 0:00:16.1]} 67... Kf6 {[%clk 0:00:04.3]} 68.
Rh1 {[%clk 0:00:16.9]} 68... Ke5 {[%clk 0:00:04.5]} 69. Ra1 {[%clk 0:00:17.4]}
69... Rd4 {[%clk 0:00:04.5]} 70. Re1+ {[%clk 0:00:17.9]} 70... Re4 {[%clk
0:00:04.7]} 71. Rb1 {[%clk 0:00:18.8]} 71... Kf4 {[%clk 0:00:05]} 72. Rb3 {[%clk
0:00:18.4]} 72... e5 {[%clk 0:00:05]} 73. Rf3+ {[%clk 0:00:18.2]} 73... Kg5
{[%clk 0:00:05.2]} 74. Rb3 {[%clk 0:00:17.4]} 74... Rd4 {[%clk 0:00:04.4]} 75.
Rc3 {[%clk 0:00:16.4]} 75... Kf4 {[%clk 0:00:04.3]} 76. Rf3+ {[%clk 0:00:16.2]}
76... Kg4 {[%clk 0:00:04.5]} 77. Rg3+ {[%clk 0:00:16.6]} 77... Kh5 {[%clk
0:00:04.6]} 78. Rh3+ {[%clk 0:00:16.4]} 78... Kg5 {[%clk 0:00:04.5]} 79. Rb3
{[%clk 0:00:15.6]} 79... e4 {[%clk 0:00:03.9]} 80. Rh3 {[%clk 0:00:09.2]} 80...
Kf4 {[%clk 0:00:03.5]} 81. Rh4+ {[%clk 0:00:09.3]} 81... Kg5 {[%clk 0:00:03.5]}
82. Rh8 {[%clk 0:00:09.1]} 82... Rd3 {[%clk 0:00:03.3]} 83. Rh7 {[%clk
0:00:07.9]} 83... Rd2 {[%clk 0:00:02.5]} 84. Kf1 {[%clk 0:00:06.4]} 84... Kf4
{[%clk 0:00:02.3]} 85. Rh4+ {[%clk 0:00:06.5]} 85... Ke5 {[%clk 0:00:01.9]} 86.
Rh5 {[%clk 0:00:06.5]} 86... Rd3 {[%clk 0:00:02.8]} 87. Rh4 {[%clk 0:00:06.5]}
87... Rf3 {[%clk 0:00:02.2]} 88. Ke2 {[%clk 0:00:06.9]} 88... Rf4 {[%clk
0:00:02.4]} 89. Rh8 {[%clk 0:00:06.7]} 89... Rg4 {[%clk 0:00:02.7]} 90. Re8+
{[%clk 0:00:07.6]} 90... Kf4 {[%clk 0:00:02.9]} 91. Rf8 {[%clk 0:00:07.8]} 91...
Rg2 {[%clk 0:00:03]} 92. Kf1 {[%clk 0:00:08.3]} 92... Rg5 {[%clk 0:00:02.6]} 93.
Ke2 {[%clk 0:00:08.2]} 93... Rh5 {[%clk 0:00:02.5]} 94. Rf7 {[%clk 0:00:08.2]}
94... Rh2 {[%clk 0:00:02.5]} 95. Ke1 {[%clk 0:00:06.9]} 95... Rh3 {[%clk
0:00:02.4]} 96. Ke2 {[%clk 0:00:06.8]} 96... Rh2 {[%clk 0:00:02.6]} 97. Ke1
{[%clk 0:00:07.1]} 97... e3 {[%clk 0:00:03.2]} 98. fxe3+ {[%clk 0:00:06.8]}
98... Kxe3 {[%clk 0:00:04.1]} 99. Rxf5 {[%clk 0:00:06.3]} 99... Rh1+ {[%clk
0:00:03.4]} 100. Rf1 {[%clk 0:00:06.6]} 100... Rxf1+ {[%clk 0:00:03.2]} 101.
Kxf1 {[%clk 0:00:06.9]} 1/2-1/2

[Event "Late-Titled-Tuesday-Blitz-April-30-2024"]
[Site "Chess.com"]
[Date "2024.04.30"]
[Round "1"]
[White "shrek4life02"]
[Black "Godzillator"]
[Result "1-0"]
[WhiteElo "2708"]
[BlackElo "2411"]
[TimeControl "180+1"]
[EndTime "14:09:55 PDT"]
[Termination "shrek4life02 won on time"]

1. d4 {[%clk 0:03:00.9]} 1... d5 {[%clk 0:02:53.4]} 2. c4 {[%clk 0:03:00.3]}
2... c6 {[%clk 0:02:53.7]} 3. Nc3 {[%clk 0:03:00.4]} 3... Nf6 {[%clk 0:02:54]}
4. e3 {[%clk 0:02:56]} 4... a6 {[%clk 0:02:54]} 5. b3 {[%clk 0:02:53.6]} 5...
Bf5 {[%clk 0:02:53.8]} 6. Bd3 {[%clk 0:02:53.2]} 6... Bg6 {[%clk 0:02:53.3]} 7.
Nf3 {[%clk 0:02:53.4]} 7... e6 {[%clk 0:02:53.6]} 8. Ne5 {[%clk 0:02:53.7]} 8...
Nbd7 {[%clk 0:02:53.4]} 9. O-O {[%clk 0:02:53.2]} 9... Nxe5 {[%clk 0:02:49.5]}
10. dxe5 {[%clk 0:02:54.1]} 10... Nd7 {[%clk 0:02:49.7]} 11. f4 {[%clk 0:02:54]}
11... Bxd3 {[%clk 0:02:47.6]} 12. Qxd3 {[%clk 0:02:54.3]} 12... g6 {[%clk
0:02:48.1]} 13. cxd5 {[%clk 0:02:54.2]} 13... cxd5 {[%clk 0:02:47.6]} 14. e4
{[%clk 0:02:54.4]} 14... Nc5 {[%clk 0:02:47.3]} 15. Qb1 {[%clk 0:02:53]} 15...
d4 {[%clk 0:02:41.9]} 16. Na4 {[%clk 0:02:51.2]} 16... Nxa4 {[%clk 0:02:28.9]}
17. bxa4 {[%clk 0:02:51.5]} 17... Qd7 {[%clk 0:02:27.4]} 18. a5 {[%clk
0:02:50.2]} 18... Bc5 {[%clk 0:02:26.9]} 19. Qd3 {[%clk 0:02:49.5]} 19... O-O
{[%clk 0:02:25.6]} 20. f5 {[%clk 0:02:49.8]} 20... Rfd8 {[%clk 0:02:17.9]} 21.
Rb1 {[%clk 0:02:46.6]} 21... Rab8 {[%clk 0:02:14.9]} 22. Bg5 {[%clk 0:02:39]}
22... Rdc8 {[%clk 0:02:12]} 23. Bf6 {[%clk 0:02:35.7]} 23... b5 {[%clk
0:02:09.5]} 24. Kh1 {[%clk 0:02:31.8]} 24... Bf8 {[%clk 0:01:56.9]} 25. Rbd1
{[%clk 0:02:28.9]} 25... Rc4 {[%clk 0:01:52.8]} 26. Rf3 {[%clk 0:02:27.5]} 26...
Rbc8 {[%clk 0:01:50.7]} 27. Qd2 {[%clk 0:02:22.5]} 27... Rc2 {[%clk 0:01:40.4]}
28. Qe1 {[%clk 0:02:22.7]} 28... Qc6 {[%clk 0:01:27.4]} 29. Rxd4 {[%clk
0:02:15.5]} 29... Rc1 {[%clk 0:01:25.7]} 30. Rd1 {[%clk 0:02:15.7]} 30... Rxd1
{[%clk 0:01:25.4]} 31. Qxd1 {[%clk 0:02:16.6]} 31... Qxe4 {[%clk 0:01:24.8]} 32.
fxe6 {[%clk 0:02:11.5]} 32... fxe6 {[%clk 0:01:22.3]} 33. h3 {[%clk 0:02:07.4]}
33... Qc2 {[%clk 0:01:16.2]} 34. Qd7 {[%clk 0:02:05.2]} 34... Qc6 {[%clk
0:01:12.8]} 35. Qd3 {[%clk 0:02:00.6]} 35... Qc4 {[%clk 0:01:04.9]} 36. Qd7
{[%clk 0:01:58.2]} 36... Qc6 {[%clk 0:01:04.6]} 37. Rd3 {[%clk 0:01:47.4]} 37...
Qxd7 {[%clk 0:01:02.8]} 38. Rxd7 {[%clk 0:01:48.3]} 38... Rc1+ {[%clk
0:01:00.7]} 39. Kh2 {[%clk 0:01:48.4]} 39... Rc2 {[%clk 0:01:00.8]} 40. Ra7
{[%clk 0:01:45.1]} 40... Rxa2 {[%clk 0:00:59.9]} 41. Rxa6 {[%clk 0:01:43.8]}
41... b4 {[%clk 0:01:00.1]} 42. Ra8 {[%clk 0:01:40.8]} 42... Kf7 {[%clk
0:00:58.2]} 43. Ra7+ {[%clk 0:01:29.3]} 43... Kg8 {[%clk 0:00:57.6]} 44. Bd8
{[%clk 0:01:17.5]} 44... b3 {[%clk 0:00:55.1]} 45. Rb7 {[%clk 0:01:17.8]} 45...
b2 {[%clk 0:00:53]} 46. Rb8 {[%clk 0:01:05.4]} 46... Kf7 {[%clk 0:00:51.1]} 47.
Rb7+ {[%clk 0:00:56.6]} 47... Ke8 {[%clk 0:00:50.4]} 48. Rb8 {[%clk 0:00:47.8]}
48... Kd7 {[%clk 0:00:44.3]} 49. Bf6 {[%clk 0:00:47.3]} 49... Bc5 {[%clk
0:00:36.8]} 50. a6 {[%clk 0:00:43.7]} 50... Rxa6 {[%clk 0:00:31.9]} 51. Rxb2
{[%clk 0:00:43.6]} 51... Be3 {[%clk 0:00:27.5]} 52. Rb7+ {[%clk 0:00:43.2]}
52... Kc6 {[%clk 0:00:26.7]} 53. Rxh7 {[%clk 0:00:44.1]} 53... Bf4+ {[%clk
0:00:26.5]} 54. Kg1 {[%clk 0:00:42.8]} 54... Bg3 {[%clk 0:00:25.8]} 55. Kf1
{[%clk 0:00:43.2]} 55... Ra2 {[%clk 0:00:24.1]} 56. Bh4 {[%clk 0:00:26.9]} 56...
Bxe5 {[%clk 0:00:20.4]} 57. Rh6 {[%clk 0:00:26.4]} 57... Kd5 {[%clk 0:00:20]}
58. Rxg6 {[%clk 0:00:26.5]} 58... Bd4 {[%clk 0:00:20.2]} 59. Rg5+ {[%clk
0:00:24.4]} 59... e5 {[%clk 0:00:20.4]} 60. Be1 {[%clk 0:00:23.7]} 60... Ra1
{[%clk 0:00:20]} 61. Ke2 {[%clk 0:00:23.6]} 61... Ke4 {[%clk 0:00:19.5]} 62.
Rg4+ {[%clk 0:00:23.9]} 62... Kd5 {[%clk 0:00:19.9]} 63. h4 {[%clk 0:00:24.1]}
63... Ra2+ {[%clk 0:00:19.6]} 64. Kf1 {[%clk 0:00:23.9]} 64... Ra1 {[%clk
0:00:19.4]} 65. Ke2 {[%clk 0:00:24.1]} 65... Ra2+ {[%clk 0:00:19.2]} 66. Kf1
{[%clk 0:00:22.8]} 66... Ra1 {[%clk 0:00:19.5]} 67. Rg3 {[%clk 0:00:23.5]} 67...
e4 {[%clk 0:00:17.4]} 68. h5 {[%clk 0:00:23.8]} 68... Kc4 {[%clk 0:00:15.4]} 69.
h6 {[%clk 0:00:24.1]} 69... Ra6 {[%clk 0:00:13.8]} 70. Rh3 {[%clk 0:00:21.8]}
70... Rf6+ {[%clk 0:00:13.4]} 71. Ke2 {[%clk 0:00:22.4]} 71... Rf8 {[%clk
0:00:12.2]} 72. g4 {[%clk 0:00:22.7]} 72... Rg8 {[%clk 0:00:12]} 73. g5 {[%clk
0:00:23.3]} 73... Rxg5 {[%clk 0:00:12]} 74. h7 {[%clk 0:00:23.7]} 74... Rg2+
{[%clk 0:00:11.9]} 75. Kf1 {[%clk 0:00:23]} 75... Rc2 {[%clk 0:00:11.2]} 76.
h8=Q {[%clk 0:00:11.1]} 76... Bxh8 {[%clk 0:00:11]} 77. Rxh8 {[%clk 0:00:12]}
77... Kd3 {[%clk 0:00:11.4]} 78. Rd8+ {[%clk 0:00:11]} 78... Ke3 {[%clk
0:00:11.3]} 79. Rh8 {[%clk 0:00:11.8]} 79... Kd3 {[%clk 0:00:10.2]} 80. Bf2
{[%clk 0:00:12]} 80... e3 {[%clk 0:00:09.3]} 81. Rd8+ {[%clk 0:00:12.4]} 81...
Kc3 {[%clk 0:00:05.5]} 82. Bxe3 {[%clk 0:00:12.1]} 82... Kb3 {[%clk 0:00:04.8]}
83. Bd2 {[%clk 0:00:11.5]} 83... Kc4 {[%clk 0:00:04]} 84. Ke2 {[%clk 0:00:11.9]}
84... Ra2 {[%clk 0:00:03.8]} 85. Rc8+ {[%clk 0:00:12]} 85... Kd5 {[%clk
0:00:03.4]} 86. Kd3 {[%clk 0:00:12.5]} 86... Ra3+ {[%clk 0:00:03.1]} 87. Bc3
{[%clk 0:00:13.2]} 87... Ke6 {[%clk 0:00:03]} 88. Rc6+ {[%clk 0:00:13.3]} 88...
Kf5 {[%clk 0:00:03.5]} 89. Rh6 {[%clk 0:00:14.2]} 89... Ra4 {[%clk 0:00:03.8]}
90. Bd4 {[%clk 0:00:14.5]} 90... Kg4 {[%clk 0:00:04]} 91. Ke4 {[%clk 0:00:14.6]}
91... Ra3 {[%clk 0:00:04.2]} 92. Rg6+ {[%clk 0:00:14.5]} 92... Kh5 {[%clk
0:00:03.3]} 93. Rg1 {[%clk 0:00:14]} 93... Ra8 {[%clk 0:00:02.5]} 94. Be5 {[%clk
0:00:11.1]} 94... Rf8 {[%clk 0:00:01.6]} 95. Rg2 {[%clk 0:00:07.9]} 95... Kh4
{[%clk 0:00:01.9]} 96. Rg7 {[%clk 0:00:07.3]} 96... Kh3 {[%clk 0:00:02]} 97. Bf4
{[%clk 0:00:07.7]} 97... Re8+ {[%clk 0:00:01.1]} 98. Kf3 {[%clk 0:00:08.2]}
98... Rh8 {[%clk 0:00:00.9]} 99. Rg1 {[%clk 0:00:07]} 1-0

[Event "Late-Titled-Tuesday-Blitz-April-30-2024"]
[Site "Chess.com"]
[Date "2024.04.30"]
[Round "2"]
[White "kleinebeer98"]
[Black "kemelgallo"]
[Result "1-0"]
[WhiteElo "2921"]
[BlackElo "2591"]
[TimeControl "180+1"]
[EndTime "14:12:35 PDT"]
[Termination "kleinebeer98 won by resignation"]

1. e4 {[%clk 0:03:00.9]} 1... c5 {[%clk 0:02:59.6]} 2. Nf3 {[%clk 0:03:01.1]}
2... d6 {[%clk 0:02:59.7]} 3. d4 {[%clk 0:03:01.7]} 3... cxd4 {[%clk 0:03:00.6]}
4. Nxd4 {[%clk 0:03:02.6]} 4... Nf6 {[%clk 0:02:59.9]} 5. Nc3 {[%clk 0:03:03.3]}
5... Nc6 {[%clk 0:02:59.4]} 6. Nd5 {[%clk 0:03:03.2]} 6... Nxd5 {[%clk
0:02:55.4]} 7. exd5 {[%clk 0:03:04.1]} 7... Qa5+ {[%clk 0:02:55.8]} 8. Bd2
{[%clk 0:03:04.5]} 8... Qxd5 {[%clk 0:02:56.1]} 9. Nb5 {[%clk 0:03:05.4]} 9...
Qe6+ {[%clk 0:02:56.5]} 10. Be2 {[%clk 0:03:05.6]} 10... Qd7 {[%clk 0:02:57.2]}
11. O-O {[%clk 0:03:06.4]} 11... a6 {[%clk 0:02:55.6]} 12. Nc3 {[%clk
0:03:06.4]} 12... g6 {[%clk 0:02:54]} 13. Nd5 {[%clk 0:03:06.2]} 13... Rb8
{[%clk 0:02:49.6]} 14. Bc3 {[%clk 0:03:05.2]} 14... Rg8 {[%clk 0:02:37.4]} 15.
Re1 {[%clk 0:03:03.2]} 15... Bg7 {[%clk 0:02:34.7]} 16. Bxg7 {[%clk 0:03:03.7]}
16... Rxg7 {[%clk 0:02:35.6]} 17. Nf6+ {[%clk 0:03:04.5]} 17... exf6 {[%clk
0:02:32.9]} 18. Bg4+ {[%clk 0:03:05.3]} 18... Kd8 {[%clk 0:02:33.4]} 19. Bxd7
{[%clk 0:03:05.4]} 19... Bxd7 {[%clk 0:02:34.3]} 20. Qxd6 {[%clk 0:03:05.8]} 1-0

[Event "Late-Titled-Tuesday-Blitz-April-30-2024"]
[Site "Chess.com"]
[Date "2024.04.30"]
[Round "2"]
[White "Thjop"]
[Black "moro182"]
[Result "0-1"]
[WhiteElo "2584"]
[BlackElo "2894"]
[TimeControl "180+1"]
[EndTime "14:12:42 PDT"]
[Termination "moro182 won by resignation"]

1. d4 {[%clk 0:03:00.9]} 1... g6 {[%clk 0:03:00.9]} 2. g3 {[%clk 0:03:01.2]}
2... Bg7 {[%clk 0:03:01]} 3. Bg2 {[%clk 0:03:01.9]} 3... d6 {[%clk 0:03:01.7]}
4. e4 {[%clk 0:03:02.5]} 4... Nf6 {[%clk 0:02:59.2]} 5. Ne2 {[%clk 0:03:02.5]}
5... O-O {[%clk 0:02:59.7]} 6. Nbc3 {[%clk 0:03:02.7]} 6... e5 {[%clk
0:03:00.2]} 7. h3 {[%clk 0:03:03]} 7... exd4 {[%clk 0:03:00]} 8. Nxd4 {[%clk
0:03:03.8]} 8... Nc6 {[%clk 0:03:00.6]} 9. Be3 {[%clk 0:03:03.7]} 9... Ne5
{[%clk 0:02:54.5]} 10. b3 {[%clk 0:03:01.5]} 10... Re8 {[%clk 0:02:54.7]} 11.
O-O {[%clk 0:03:01.5]} 11... Bd7 {[%clk 0:02:51.8]} 12. Re1 {[%clk 0:03:01.9]}
12... Qc8 {[%clk 0:02:50.6]} 13. Kh2 {[%clk 0:03:01.4]} 13... a6 {[%clk
0:02:47.9]} 14. a4 {[%clk 0:03:00.9]} 14... h5 {[%clk 0:02:47.2]} 15. Nd5 {[%clk
0:03:00]} 15... Nxd5 {[%clk 0:02:37.1]} 16. exd5 {[%clk 0:03:00.9]} 16... c5
{[%clk 0:02:35]} 17. dxc6 {[%clk 0:02:59.9]} 17... Nxc6 {[%clk 0:02:32.1]} 18.
Rc1 {[%clk 0:02:50.7]} 18... Nxd4 {[%clk 0:02:30.8]} 19. Bxd4 {[%clk 0:02:51]}
19... Rxe1 {[%clk 0:02:31.7]} 0-1

[Event "Late-Titled-Tuesday-Blitz-April-30-2024"]
[Site "Chess.com"]
[Date "2024.04.30"]
[Round "2"]
[White "GambitGiesbergen"]
[Black "The_Straightforward_Rook"]
[Result "0-1"]
[WhiteElo "2292"]
[BlackElo "2517"]
[TimeControl "180+1"]
[EndTime "14:13:02 PDT"]
[Termination "The_Straightforward_Rook won by resignation"]

1. d4 {[%clk 0:03:00.9]} 1... d5 {[%clk 0:02:59.4]} 2. Nc3 {[%clk 0:03:00.1]}
2... e6 {[%clk 0:02:56.9]} 3. e4 {[%clk 0:03:01]} 3... Bb4 {[%clk 0:02:55.8]} 4.
e5 {[%clk 0:02:59.8]} 4... c5 {[%clk 0:02:55]} 5. a3 {[%clk 0:02:59.8]} 5... Ba5
{[%clk 0:02:55.5]} 6. b4 {[%clk 0:02:56.2]} 6... cxd4 {[%clk 0:02:54.5]} 7. Nb5
{[%clk 0:02:56]} 7... Bc7 {[%clk 0:02:53]} 8. f4 {[%clk 0:02:55.4]} 8... Nc6
{[%clk 0:02:51]} 9. Nf3 {[%clk 0:02:55.5]} 9... Nge7 {[%clk 0:02:47.9]} 10.
Nbxd4 {[%clk 0:02:55.4]} 10... O-O {[%clk 0:02:39.9]} 11. Be3 {[%clk 0:02:55.2]}
11... Nf5 {[%clk 0:02:29.3]} 12. Bd3 {[%clk 0:02:51.6]} 12... Nxe3 {[%clk
0:02:24.9]} 13. Bxh7+ {[%clk 0:02:45.1]} 13... Kxh7 {[%clk 0:02:16.4]} 14. Ng5+
{[%clk 0:02:44.7]} 14... Qxg5 {[%clk 0:02:16.9]} 15. Qd3+ {[%clk 0:02:44.6]}
15... Qg6 {[%clk 0:02:12.7]} 16. Qxe3 {[%clk 0:02:44.5]} 16... Nxd4 {[%clk
0:02:07.6]} 0-1

[Event "Late-Titled-Tuesday-Blitz-April-30-2024"]
[Site "Chess.com"]
[Date "2024.04.30"]
[Round "2"]
[White "KogotBobra17"]
[Black "duone"]
[Result "1-0"]
[WhiteElo "2766"]
[BlackElo "2414"]
[TimeControl "180+1"]
[EndTime "14:13:29 PDT"]
[Termination "KogotBobra17 won by resignation"]

1. e4 {[%clk 0:03:00.9]} 1... c5 {[%clk 0:02:54]} 2. Nf3 {[%clk 0:03:01.3]} 2...
d6 {[%clk 0:02:52.5]} 3. d4 {[%clk 0:03:01.6]} 3... cxd4 {[%clk 0:02:53.2]} 4.
Qxd4 {[%clk 0:03:02.5]} 4... Nf6 {[%clk 0:02:52.4]} 5. Nc3 {[%clk 0:03:02.4]}
5... Nc6 {[%clk 0:02:45.7]} 6. Bb5 {[%clk 0:03:02.7]} 6... Bd7 {[%clk 0:02:44]}
7. Bxc6 {[%clk 0:03:03]} 7... bxc6 {[%clk 0:02:42.6]} 8. e5 {[%clk 0:03:03.2]}
8... c5 {[%clk 0:02:41]} 9. Qd3 {[%clk 0:03:01.7]} 9... dxe5 {[%clk 0:02:39.3]}
10. Nxe5 {[%clk 0:03:02.6]} 10... e6 {[%clk 0:02:38.9]} 11. Bg5 {[%clk
0:03:01.5]} 11... Be7 {[%clk 0:02:26.5]} 12. O-O-O {[%clk 0:03:01.1]} 12... Nd5
{[%clk 0:02:23.6]} 13. Bxe7 {[%clk 0:02:51.9]} 13... Qxe7 {[%clk 0:02:23.3]} 14.
Nxd5 {[%clk 0:02:48.7]} 14... exd5 {[%clk 0:02:21.9]} 15. Nxd7 {[%clk
0:02:49.2]} 15... Qxd7 {[%clk 0:02:20.3]} 16. Rhe1+ {[%clk 0:02:49.6]} 16... Kd8
{[%clk 0:02:19.8]} 17. Qf3 {[%clk 0:02:47]} 17... Kc7 {[%clk 0:02:18.2]} 18.
Rxd5 {[%clk 0:02:45.1]} 18... Qc6 {[%clk 0:02:14.9]} 19. Qxf7+ {[%clk 0:02:44]}
19... Kc8 {[%clk 0:02:14]} 20. Qf5+ {[%clk 0:02:34.5]} 20... Kb7 {[%clk
0:02:11.5]} 21. Re7+ {[%clk 0:02:32.3]} 21... Kb8 {[%clk 0:02:08.8]} 22. Qe5+
{[%clk 0:02:32.6]} 22... Kc8 {[%clk 0:02:07.6]} 23. Rxc5 {[%clk 0:02:32.6]} 1-0

[Event "Late-Titled-Tuesday-Blitz-April-30-2024"]
[Site "Chess.com"]
[Date "2024.04.30"]
[Round "2"]
[White "manitodeplomo"]
[Black "DrVelja"]
[Result "0-1"]
[WhiteElo "2613"]
[BlackElo "2965"]
[TimeControl "180+1"]
[EndTime "14:14:09 PDT"]
[Termination "DrVelja won by resignation"]

1. d4 {[%clk 0:03:00.9]} 1... Nf6 {[%clk 0:02:56.4]} 2. c4 {[%clk 0:03:00.2]}
2... e6 {[%clk 0:02:56.9]} 3. Nf3 {[%clk 0:02:59.9]} 3... d5 {[%clk 0:02:57.1]}
4. Nc3 {[%clk 0:02:59.8]} 4... c6 {[%clk 0:02:57.5]} 5. Bg5 {[%clk 0:02:59]}
5... h6 {[%clk 0:02:57.6]} 6. Bxf6 {[%clk 0:02:59.2]} 6... Qxf6 {[%clk
0:02:58.5]} 7. Qb3 {[%clk 0:02:59.6]} 7... Qe7 {[%clk 0:02:56.1]} 8. a3 {[%clk
0:02:46.6]} 8... g6 {[%clk 0:02:54.4]} 9. e4 {[%clk 0:02:45.7]} 9... dxe4 {[%clk
0:02:54.3]} 10. Nxe4 {[%clk 0:02:46.6]} 10... Bg7 {[%clk 0:02:54.9]} 11. O-O-O
{[%clk 0:02:45.9]} 11... O-O {[%clk 0:02:54.5]} 12. Bd3 {[%clk 0:02:44.1]} 12...
Nd7 {[%clk 0:02:54.6]} 13. Rhe1 {[%clk 0:02:43.5]} 13... a5 {[%clk 0:02:47.7]}
14. c5 {[%clk 0:02:40.1]} 14... b6 {[%clk 0:02:44.2]} 15. Qc2 {[%clk 0:02:36.5]}
15... bxc5 {[%clk 0:02:42.6]} 16. dxc5 {[%clk 0:02:37.4]} 16... Rb8 {[%clk
0:02:42.7]} 17. b3 {[%clk 0:02:32.1]} 17... Nf6 {[%clk 0:02:27]} 18. Nd6 {[%clk
0:02:31]} 18... Nd5 {[%clk 0:02:26.4]} 19. Bc4 {[%clk 0:02:22.3]} 19... Qf6
{[%clk 0:02:22.8]} 20. Ne5 {[%clk 0:02:21]} 20... Qf4+ {[%clk 0:02:21.8]} 21.
Kb1 {[%clk 0:02:07.8]} 21... Bxe5 {[%clk 0:02:22.2]} 22. g3 {[%clk 0:02:07.7]}
22... Qf6 {[%clk 0:02:14.4]} 23. f4 {[%clk 0:02:05.6]} 23... Bxd6 {[%clk
0:02:09.2]} 24. Bxd5 {[%clk 0:01:59.6]} 24... exd5 {[%clk 0:02:09.4]} 25. cxd6
{[%clk 0:01:59.4]} 25... Bf5 {[%clk 0:02:10.1]} 0-1